bitfinex/quotes_ETHUSD_20250426
["timestamp","ask_amount","ask_price","bid_price","bid_amount"]
[1745669950974,3.50282822,1794.4,1794.2,0.11639015]
[1745669951176,3.50282822,1794.4,1794.3,0.11639015]
[1745669952796,21.838,1794.5,1794.3,0.11639015]
[1745669953093,24.838,1794.5,1794.4,0.11639015]
[1745669955069,30.705,1794.5,1794.4,0.11639015]
[1745669955247,24.838,1794.5,1794.4,0.11639015]
[1745669956762,21.838,1794.5,1794.4,0.11639015]
[1745669958466,24.838,1794.5,1794.4,0.11639015]
[1745669961314,21.838,1794.5,1794.4,0.11639015]
[1745669963594,21.838,1794.5,1794.4,0.87269015]
[1745669963794,21.838,1794.5,1794.4,7.09015106]
[1745669964519,21.838,1794.5,1794.4,1.51725762]
[1745669964707,21.838,1794.5,1794.4,0.87269015]
[1745669967311,24.838,1794.5,1794.4,0.11639015]
[1745669970109,28.185,1794.5,1794.4,0.11639015]
[1745669970336,24.838,1794.5,1794.4,0.11639015]
[1745669971499,3.8299,1794.4,1794.2,0.11639015]
[1745669971699,0.50282822,1794.3,1794.1,0.11639015]
[1745669971899,0.50282822,1794.3,1794.2,0.11639015]
[1745669972343,9.09,1794.4,1794.3,0.11639015]
[1745669972582,14.189,1794.4,1794.3,0.11639015]
[1745669976604,8.099,1794.4,1794.3,0.11639015]
[1745669980410,6.347,1794.3,1794.2,0.11639015]
[1745669980598,6.84982822,1794.3,1794.2,0.11639015]
[1745669981509,7.26228115,1794.3,1794.2,0.11639015]
[1745669981714,7.26228115,1794.3,1794.1,0.11639015]
[1745669981715,7.147,1794.2,1794.1,0.11639015]
[1745669984082,3.0,1794.0,1793.7,0.11639015]
[1745669984284,3.50282822,1793.8,1793.6,0.11639015]
[1745669984497,9.59282822,1793.8,1793.6,0.11639015]
[1745669984708,9.59282822,1793.8,1793.7,0.11639015]
[1745669986604,9.59282822,1793.8,1793.6,0.11639015]
[1745669986906,0.7663,1793.7,1793.5,0.11639015]
[1745669987284,17.23882822,1793.6,1793.5,0.11639015]
[1745669988189,3.0,1793.5,1793.4,0.11639015]
[1745669988484,8.51127617,1793.5,1793.4,0.11639015]
[1745669989177,14.60127617,1793.5,1793.4,0.11639015]
[1745669992323,7.1505,1793.2,1793.1,0.05]
[1745669992522,0.55,1793.1,1792.7,0.7501]
[1745669992732,3.0,1792.9,1792.7,0.7501]
[1745669993941,5.5222429,1793.0,1792.7,0.7501]
[1745669994146,5.5222429,1793.0,1792.7,6.32809072]
[1745669994332,0.50282822,1792.8,1792.2,0.8069]
[1745669994525,3.0,1792.6,1792.3,0.8069]
[1745669994727,5.096,1792.5,1792.3,6.38632269]
[1745669994966,5.096,1792.5,1792.3,0.8069]
[1745669998119,5.50926683,1792.5,1792.3,0.8069]
[1745669998320,5.50926683,1792.5,1792.1,0.05]
[1745669998518,6.01209505,1792.5,1792.1,0.8517]
[1745669998741,5.096,1792.5,1792.3,5.57930793]
[1745670000471,16.739,1792.7,1792.4,6.38066091]
[1745670000657,5.098,1792.6,1792.5,5.57880055]
[1745670001169,5.098,1792.6,1792.4,6.38064534]
[1745670002568,5.098,1792.6,1792.5,5.57880055]
[1745670002765,5.098,1792.6,1792.5,6.38050055]
[1745670002929,5.098,1792.6,1792.5,7.57644514]
[1745670004338,16.739,1792.7,1792.6,6.38018934]
[1745670004572,21.837,1792.7,1792.6,6.38018934]
[1745670006268,21.837,1792.7,1792.6,0.8017]
[1745670006580,22.5874,1792.7,1792.1,5.62978502]
[1745670006881,22.5874,1792.7,1792.2,6.38125743]
[1745670007683,22.5874,1792.7,1792.3,5.57928216]
[1745670008041,22.5874,1792.7,1792.2,6.38124015]
[1745670008375,22.5874,1792.7,1792.3,5.57940324]
[1745670010656,22.5874,1792.7,1792.2,6.38128851]
[1745670011099,22.5874,1792.7,1792.2,0.8017]
[1745670011100,3.0,1792.6,1792.2,0.8017]
[1745670011372,3.50282822,1792.6,1792.2,0.8017]
[1745670011579,3.50282822,1792.6,1792.1,6.39077338]
[1745670013676,6.84982822,1792.6,1792.1,0.8109]
[1745670013978,4.1671,1792.5,1792.1,0.8109]
[1745670014848,4.1671,1792.5,1792.1,0.05]
[1745670015952,4.1671,1792.5,1792.1,5.63003455]
[1745670016580,0.8201,1792.5,1792.1,5.63003455]
[1745670016781,4.25462822,1792.6,1792.1,6.83066148]
[1745670020290,4.25462822,1792.6,1792.2,5.57957353]
[1745670020495,4.25462822,1792.6,1792.3,6.40437421]
[1745670020496,0.7518,1792.6,1792.3,6.40437421]
[1745670021859,0.7518,1792.6,1792.3,0.8252]
[1745670022059,0.7518,1792.6,1792.2,6.40478355]
[1745670022298,0.7518,1792.6,1792.2,0.8252]
[1745670022595,0.7518,1792.6,1792.2,6.40492593]
[1745670024254,3.7518,1792.6,1792.2,0.8252]
[1745670024453,3.84982822,1792.5,1792.1,0.05]
[1745670025274,0.8158,1792.4,1792.1,0.05]
[1745670025573,5.094,1792.3,1792.1,0.05]
[1745670027306,3.0,1792.2,1792.1,0.05]
[1745670031510,3.99630055,1792.2,1792.1,0.05]
[1745670035724,20.74930055,1792.2,1792.1,0.05]
[1745670051031,16.96090055,1792.2,1792.1,0.05]
[1745670051205,22.05190055,1792.2,1792.1,0.6926427]
[1745670051622,22.05190055,1792.2,1792.1,0.05]
[1745670051826,22.05190055,1792.2,1792.1,6.42624575]
[1745670052436,0.20790055,1792.2,1792.1,6.92907397]
[1745670052924,5.091,1792.3,1792.2,6.3425344]
[1745670053125,5.27799488,1792.3,1792.2,7.53979241]
[1745670056831,5.27799488,1792.3,1792.2,1.96005801]
[1745670056999,5.27799488,1792.3,1792.2,0.7628]
[1745670057734,5.27799488,1792.3,1792.2,6.3425344]
[1745670058207,5.27799488,1792.3,1792.2,0.7628]
[1745670058409,5.27799488,1792.3,1792.1,0.05]
[1745670060411,5.7808231,1792.3,1792.1,0.05]
[1745670060805,3.7887,1792.2,1792.1,0.05]
[1745670061029,3.97774842,1792.2,1792.1,0.05]
[1745670063147,20.72974842,1792.2,1792.1,0.05]
[1745670072735,25.81974842,1792.2,1792.1,0.05]
[1745670074158,29.71674842,1792.2,1792.1,0.05]
[1745670074357,4.1415,1792.0,1791.4,0.7685]
[1745670074578,0.50282822,1791.8,1791.4,0.7685]
[1745670074772,3.50282822,1791.6,1791.2,0.7685]
[1745670075077,0.18511719,1791.5,1791.2,0.7685]
[1745670075945,0.18511719,1791.5,1791.2,6.351332]
[1745670076331,0.18511719,1791.5,1791.2,0.7685]
[1745670076924,0.18511719,1791.5,1791.2,6.35134162]
[1745670077129,0.18511719,1791.5,1791.2,0.7685]
[1745670077969,0.18511719,1791.5,1791.1,0.8185]
[1745670078142,3.50282822,1791.6,1791.1,0.8185]
[1745670078469,0.18511719,1791.5,1791.1,0.8185]
[1745670078882,0.7567,1791.4,1791.1,0.8185]
[1745670079080,0.7567,1791.4,1791.1,0.05]
[1745670079081,0.50282822,1791.2,1791.1,0.05]
[1745670079576,0.68418787,1791.2,1791.1,0.05]
[1745670079793,1.44088787,1791.2,1791.1,0.05]
[1745670080878,4.99088787,1791.2,1791.1,0.05]
[1745670081089,3.18135965,1791.2,1791.1,0.05]
[1745670081275,0.18135965,1791.2,1791.1,6.44726118]
[1745670081576,5.085,1791.4,1791.3,5.58253782]
[1745670081784,5.24204596,1791.4,1791.3,0.8141]
[1745670082494,5.24204596,1791.4,1791.3,6.39663782]
[1745670082658,0.15704596,1791.4,1791.3,6.39663782]
[1745670082848,5.086,1791.9,1791.3,10.00894609]
[1745670083054,5.086,1791.9,1791.8,6.39508002]
[1745670088395,16.757,1792.0,1791.8,6.39508002]
[1745670088554,17.5127,1792.7,1792.4,5.57898048]
[1745670088750,5.21696223,1792.6,1792.4,5.57898048]
[1745670089303,5.21696223,1792.6,1792.3,0.8141]
[1745670089455,5.21696223,1792.6,1792.4,5.57911179]
[1745670089654,5.21696223,1792.6,1792.3,6.39334004]
[1745670089894,5.21696223,1792.6,1792.3,0.8141]
[1745670090353,5.21696223,1792.6,1792.3,6.3935172]
[1745670090554,5.21696223,1792.6,1792.3,0.8141]
[1745670090894,5.21696223,1792.6,1792.2,6.39366631]
[1745670091097,5.21696223,1792.6,1792.1,5.57990811]
[1745670091300,5.21696223,1792.6,1792.2,5.5797093]
[1745670091465,5.21696223,1792.6,1792.1,5.57989388]
[1745670091669,3.0,1792.5,1792.1,5.57978719]
[1745670091870,3.0,1792.5,1792.2,5.5797133]
[1745670092071,0.15065885,1792.4,1792.2,5.5797133]
[1745670093687,0.15065885,1792.4,1792.2,5.57954321]
[1745670093873,0.15065885,1792.4,1792.3,6.39802308]
[1745670094193,8.085,1792.6,1792.3,11.97744616]
[1745670094380,0.1499539,1792.5,1792.4,5.57906826]
[1745670095783,0.1499539,1792.5,1792.3,6.3978897]
[1745670095988,0.1499539,1792.5,1792.3,0.8186]
[1745670096497,0.1499539,1792.5,1792.3,6.39796684]
[1745670097961,0.1499539,1792.5,1792.3,0.8186]
[1745670098273,0.1499539,1792.5,1792.2,11.15910031]
[1745670098474,0.1499539,1792.5,1792.3,5.57941508]
[1745670099401,0.1499539,1792.5,1792.4,5.5791118]
[1745670102002,0.1499539,1792.5,1792.4,6.3591118]
[1745670102601,0.1499539,1792.5,1792.4,0.78]
[1745670102808,0.1499539,1792.5,1792.2,6.359565]
[1745670103096,5.2339539,1792.5,1792.3,5.57939065]
[1745670104023,5.2339539,1792.5,1792.3,5.57919775]
[1745670105428,5.2339539,1792.5,1792.4,5.5791118]
[1745670105632,5.2339539,1792.5,1792.4,6.3885118]
[1745670106206,0.1499539,1792.5,1792.4,6.89134002]
[1745670106404,5.084,1793.0,1792.9,6.38695591]
[1745670106613,5.22251508,1793.0,1792.9,6.38695591]
[1745670107402,5.22251508,1793.0,1792.9,0.8094]
[1745670107717,5.22251508,1793.0,1792.9,6.38695591]
[1745670108120,5.22251508,1793.0,1792.9,7.58341384]
[1745670108992,5.22251508,1793.0,1792.9,2.00585793]
[1745670109316,5.22251508,1793.0,1792.9,6.38695591]
[1745670116007,0.13851508,1793.0,1792.9,6.38695591]
[1745670116202,5.077,1793.3,1793.2,6.34142279]
[1745670116413,5.21827517,1793.3,1793.2,6.34142279]
[1745670117403,0.14127517,1793.3,1793.2,6.34142279]
[1745670117727,5.077,1793.6,1793.5,6.39768999]
[1745670118029,5.22267883,1793.6,1793.5,6.39768999]
[1745670118395,0.05,1793.9,1793.8,6.38235749]
[1745670123769,5.125,1793.9,1793.5,5.57555037]
[1745670124053,0.12967535,1793.8,1793.5,11.15107602]
[1745670124252,0.7849,1793.8,1793.4,0.7668]
[1745670124415,0.7849,1793.8,1793.2,1.19182431]
[1745670124416,0.63162299,1793.7,1793.2,1.95862431]
[1745670124744,0.12879477,1793.7,1793.2,1.95862431]
[1745670125050,0.12879477,1793.7,1793.4,5.57578697]
[1745670125251,0.12879477,1793.7,1793.4,12.26680158]
[1745670125547,0.12879477,1793.7,1793.4,6.69099685]
[1745670126045,0.12879477,1793.7,1793.5,5.57567084]
[1745670127043,0.12879477,1793.7,1793.6,5.57537912]
[1745670127215,0.12879477,1793.7,1793.5,5.57548516]
[1745670127541,0.12879477,1793.7,1793.6,5.57537912]
[1745670127746,0.12879477,1793.7,1793.5,7.56887438]
[1745670127941,5.125,1793.9,1793.5,7.56887438]
[1745670128115,0.12685697,1793.6,1793.5,7.56887438]
[1745670128317,5.125,1793.9,1793.5,13.14438542]
[1745670128718,0.12685697,1793.8,1793.6,5.57530871]
[1745670128923,5.125,1793.9,1793.6,5.57530871]
[1745670129129,0.12838404,1793.7,1793.6,5.57530871]
[1745670129326,5.125,1793.9,1793.6,5.57530871]
[1745670129522,0.12838404,1793.7,1793.6,5.57530871]
[1745670129839,0.12838404,1793.7,1793.5,7.56900519]
[1745670130035,5.125,1793.9,1793.5,7.56900519]
[1745670130204,0.12838404,1793.8,1793.5,13.14445077]
[1745670130405,0.05,1793.9,1793.6,6.88957868]
[1745670130645,5.20338404,1793.8,1793.6,6.88957868]
[1745670130816,5.20338404,1793.8,1793.4,5.57578955]
[1745670132250,5.20338404,1793.8,1793.5,5.57567974]
[1745670133842,0.8266,1793.7,1793.1,0.7525]
[1745670134019,0.8266,1793.5,1792.9,0.7552]
[1745670134220,5.20285546,1793.4,1792.9,6.33254735]
[1745670134415,0.8266,1793.3,1793.0,0.63325473]
[1745670134734,0.12673939,1793.2,1792.9,11.15491113]
[1745670134905,0.12673939,1793.2,1792.9,5.57735117]
[1745670135105,0.12673939,1793.2,1793.1,5.5769338]
[1745670135606,5.075,1793.4,1793.1,11.1538676]
[1745670135941,0.12673939,1793.3,1793.1,11.1538676]
[1745670136241,5.075,1793.4,1793.2,1.11538676]
[1745670136537,5.075,1793.4,1793.2,5.57657046]
[1745670136950,5.075,1793.4,1793.1,5.57675616]
[1745670137240,5.075,1793.4,1793.0,6.3322579]
[1745670137748,5.075,1793.4,1793.0,0.7552]
[1745670137949,0.7927,1793.3,1792.8,6.37473411]
[1745670138137,3.7927,1793.3,1792.8,6.7730134]
[1745670138547,3.7927,1793.3,1792.8,1.19527929]
[1745670138846,3.7927,1793.3,1792.5,5.57862554]
[1745670138847,0.7927,1793.1,1792.5,5.57862554]
[1745670139031,0.7927,1792.9,1792.5,5.57862554]
[1745670139763,0.7927,1792.9,1792.4,6.82599096]
[1745670139924,0.7927,1792.9,1792.5,0.6825991]
[1745670140450,0.7927,1792.9,1792.5,5.57857376]
[1745670140615,0.7927,1792.9,1792.6,5.5784211]
[1745670140950,0.7927,1792.9,1792.6,5.57825992]
[1745670142109,0.7927,1792.9,1792.7,5.57791806]
[1745670142314,5.07,1793.0,1792.7,5.57791806]
[1745670142547,5.07,1793.0,1792.8,6.13565024]
[1745670143857,5.07,1793.0,1792.8,0.55779181]
[1745670144633,5.07,1793.0,1792.9,5.57755591]
[1745670144946,5.07,1793.0,1792.8,0.55779181]
[1745670146414,5.07,1793.0,1792.7,5.57795602]
[1745670146613,0.12009991,1792.9,1792.5,0.7623]
[1745670146840,0.12009991,1792.9,1792.7,5.57793685]
[1745670148326,0.12009991,1792.9,1792.7,11.15593161]
[1745670148528,0.12009991,1792.9,1792.7,5.57793685]
[1745670148729,0.12009991,1792.9,1792.7,11.15590606]
[1745670148922,0.12009991,1792.9,1792.7,6.69352746]
[1745670149250,0.12009991,1792.9,1792.7,12.27148913]
[1745670149454,0.12009991,1792.9,1792.7,6.69352746]
[1745670149951,0.12009991,1792.9,1792.8,5.57786702]
[1745670151452,0.12009991,1792.9,1792.7,1.11559061]
[1745670151658,0.12009991,1792.9,1792.7,5.57799889]
[1745670152531,0.12009991,1792.9,1792.6,5.57834364]
[1745670153344,0.12009991,1792.9,1792.5,6.34090505]
[1745670153555,0.7859,1792.8,1792.4,5.57891864]
[1745670153941,0.11804273,1792.7,1792.3,0.7776]
[1745670154145,5.072,1792.6,1792.3,0.7776]
[1745670154347,5.18998394,1792.6,1792.4,5.57899727]
[1745670154554,5.18998394,1792.6,1792.4,0.63565973]
[1745670155454,0.7859,1792.5,1792.4,0.63565973]
[1745670156025,0.90388394,1792.5,1792.4,0.63565973]
[1745670157434,0.11798394,1792.5,1792.4,6.21477153]
[1745670159863,0.11798394,1792.5,1792.4,0.63565973]
[1745670161275,0.11798394,1792.5,1792.4,6.21477153]
[1745670162366,0.11798394,1792.5,1792.4,0.63565973]
[1745670162676,0.11798394,1792.5,1792.3,5.57939329]
[1745670162888,0.7723,1792.4,1791.8,0.7807]
[1745670163039,1.27512822,1792.4,1791.9,5.58062077]
[1745670163366,0.7723,1792.2,1791.8,5.58083894]
[1745670163668,5.073,1792.1,1791.9,6.138735]
[1745670164001,0.11645526,1792.0,1791.9,6.138735]
[1745670166583,0.11645526,1792.0,1791.9,6.919435]
[1745670167090,5.073,1792.3,1792.2,5.5797344]
[1745670167255,5.073,1792.3,1792.2,7.47640116]
[1745670167256,0.10863272,1792.3,1792.2,7.47640116]
[1745670167661,0.10863272,1792.3,1792.2,7.97922938]
[1745670167895,5.073,1792.6,1792.5,5.57880055]
[1745670168286,0.7723,1792.9,1792.8,5.57786702]
[1745670168582,5.073,1792.9,1792.8,5.57786702]
[1745670168970,0.02964169,1792.8,1792.7,5.57802685]
[1745670170597,0.02964169,1792.8,1792.7,6.69366305]
[1745670171293,0.02964169,1792.8,1792.7,7.47436305]
[1745670177198,0.14186236,1792.8,1792.7,7.47436305]
[1745670177393,0.02964169,1792.8,1792.7,7.47436305]
[1745670177599,0.14186236,1792.8,1792.7,7.47436305]
[1745670177913,3.0,1793.6,1793.4,5.57600089]
[1745670177914,0.8316,1793.6,1793.4,5.57600089]
[1745670178120,0.8316,1793.6,1793.5,5.57568999]
[1745670178326,16.746,1793.8,1793.5,5.57568999]
[1745670178525,5.067,1793.6,1793.5,5.57546366]
[1745670179089,5.067,1793.6,1793.4,5.57597765]
[1745670179284,5.067,1793.6,1793.3,5.5761278]
[1745670179491,0.8316,1793.5,1793.2,6.37475978]
[1745670179721,0.8316,1793.5,1793.1,5.57682076]
[1745670179927,1.33442822,1793.5,1793.1,5.57682076]
[1745670180701,0.8316,1793.4,1793.0,5.57712417]
[1745670182027,0.50282822,1793.3,1792.7,6.69362471]
[1745670182215,5.8976,1793.2,1792.8,5.57773704]
[1745670182527,5.8976,1793.2,1792.7,6.69368468]
[1745670182829,0.50282822,1793.1,1792.5,5.57876458]
[1745670183000,0.7918,1793.0,1792.5,5.57867175]
[1745670183205,0.7918,1793.0,1792.6,5.57843446]
[1745670185023,0.7918,1793.0,1792.5,5.57858558]
[1745670185211,0.7918,1793.0,1792.5,5.57873624]
[1745670185632,0.7918,1793.0,1792.4,6.36642441]
[1745670185919,0.7918,1793.0,1792.4,7.56099512]
[1745670186126,0.7918,1793.0,1792.5,5.57876962]
[1745670186325,0.7918,1793.0,1792.6,5.57848705]
[1745670186537,0.7918,1793.0,1792.5,5.5786349]
[1745670187432,0.7918,1793.0,1792.5,11.15719144]
[1745670187594,0.7918,1793.0,1792.5,1.31392621]
[1745670187793,0.7918,1793.0,1792.4,6.36642966]
[1745670188112,0.7918,1793.0,1792.5,5.57865807]
[1745670188527,0.7918,1793.0,1792.5,5.57854896]
[1745670189000,0.7918,1793.0,1792.6,5.57837487]
[1745670192242,0.7918,1793.0,1792.6,5.57830356]
[1745670192439,0.7918,1793.0,1792.6,6.13613392]
[1745670192758,21.811,1793.2,1792.6,6.13613392]
[1745670192759,6.09,1793.3,1792.8,0.775]
[1745670193119,6.09,1793.3,1792.8,6.35273041]
[1745670193335,0.7667,1793.2,1792.9,5.57739899]
[1745670193534,0.7667,1793.2,1792.8,5.57772342]
[1745670193920,0.7667,1793.2,1792.8,5.57771443]
[1745670194133,4.1187,1793.2,1792.9,5.57744347]
[1745670194342,0.7667,1793.2,1792.9,5.57744347]
[1745670195762,0.7667,1793.2,1792.8,5.57785057]
[1745670196365,0.7667,1793.2,1792.9,5.57750984]
[1745670197183,0.7667,1793.2,1792.8,5.57768309]
[1745670198184,0.7667,1793.2,1792.6,1.33063036]
[1745670198185,0.7942,1793.0,1792.6,5.57840472]
[1745670198487,5.067,1792.9,1792.6,5.57840472]
[1745670198858,5.067,1792.9,1792.6,6.693937]
[1745670199164,5.067,1792.9,1792.7,5.5779132]
[1745670200005,5.067,1792.9,1792.8,6.38286702]
[1745670201843,5.067,1792.9,1792.8,5.57786702]
[1745670203455,5.061,1793.2,1793.1,5.5769338]
[1745670203784,5.061,1793.5,1793.4,5.57594556]
[1745670205049,0.8212,1793.8,1793.7,5.57506829]
[1745670205260,5.061,1793.8,1793.7,5.57506829]
[1745670210025,5.061,1793.8,1793.6,5.57519026]
[1745670210323,5.061,1793.8,1793.7,5.57506829]
[1745670211216,5.061,1793.8,1793.6,5.57519026]
[1745670211403,5.061,1793.8,1793.7,5.57506829]
[1745670212214,0.05,1793.9,1793.7,5.57506829]
[1745670212523,5.06,1793.8,1793.7,5.57490533]
[1745670212679,5.06,1793.8,1793.7,6.6899216]
[1745670214207,5.06,1793.8,1793.5,5.57555666]
[1745670214413,5.06,1793.8,1793.5,5.57551108]
[1745670214729,5.06,1793.8,1793.6,5.57535535]
[1745670215393,5.06,1793.8,1793.7,5.57506829]
[1745670222460,0.05,1793.9,1793.8,5.57475749]
[1745670222621,5.109,1793.9,1793.8,7.48514007]
[1745670225345,0.05,1793.9,1793.8,7.48514007]
[1745670225553,5.109,1793.9,1793.8,5.57475749]
[1745670226214,0.7917,1793.8,1793.4,5.57588662]
[1745670226610,0.7917,1793.8,1793.5,5.57566799]
[1745670227652,0.7917,1793.8,1793.4,5.57586007]
[1745670228723,0.7917,1793.8,1793.4,5.5758095]
[1745670229040,0.7917,1793.8,1793.5,5.57568803]
[1745670230157,0.7917,1793.8,1793.5,5.57556874]
[1745670232158,0.7917,1793.8,1793.5,1.1151479]
[1745670232358,5.109,1793.9,1793.7,5.57487551]
[1745670232557,5.109,1793.9,1793.8,5.57475749]
[1745670235790,5.109,1793.9,1793.7,5.57483716]
[1745670236089,5.109,1793.9,1793.8,5.57475749]
[1745670236778,5.104,1793.9,1793.8,6.36715749]
[1745670236974,5.104,1793.9,1793.8,7.56135689]
[1745670240203,5.104,1793.9,1793.8,1.1941994]
[1745670240361,5.104,1793.9,1793.6,0.7924]
[1745670240691,5.104,1793.9,1793.8,5.57475749]
[1745670242599,5.104,1793.9,1793.7,5.57493084]
[1745670242769,5.104,1793.9,1793.8,5.57475749]
[1745670243316,5.104,1793.9,1793.7,5.5748716]
[1745670244225,5.104,1793.9,1793.8,5.57475749]
[1745670245526,0.05,1793.9,1793.8,5.57475749]
[1745670245702,0.05,1793.9,1793.8,6.36715749]
[1745670248638,1e-08,1793.9,1793.8,6.36715749]
[1745670259478,1e-08,1794.1,1794.0,6.354136]
[1745670259782,0.8166,1794.6,1794.5,5.57258289]
[1745670259942,5.8686,1794.6,1794.5,5.57258289]
[1745670260146,5.8686,1794.6,1794.4,5.57269164]
[1745670262516,5.8686,1794.6,1794.3,5.57319929]
[1745670262861,5.8686,1794.6,1794.3,11.14618173]
[1745670263395,5.8686,1794.6,1794.4,5.57287246]
[1745670263594,5.8686,1794.6,1794.3,5.57301679]
[1745670263795,5.8686,1794.6,1794.4,5.57286298]
[1745670264395,5.8686,1794.6,1794.4,5.57272353]
[1745670265400,5.8686,1794.6,1794.5,5.57258289]
[1745670265809,5.8686,1794.6,1794.4,5.57272353]
[1745670267083,5.8686,1794.6,1794.5,5.57258289]
[1745670268602,5.052,1794.6,1794.5,5.57258289]
[1745670268912,5.052,1794.6,1794.5,6.68711353]
[1745670271288,5.052,1794.6,1794.5,5.57258289]
[1745670276026,5.052,1794.6,1794.4,5.57271654]
[1745670276230,0.8007,1794.5,1794.0,1.49284649]
[1745670276547,0.8007,1794.1,1793.8,5.57463901]
[1745670276715,5.046,1794.0,1793.8,5.57463901]
[1745670277044,5.046,1794.0,1793.8,5.57457557]
[1745670277201,5.046,1794.0,1793.8,5.5745315]
[1745670277398,3.0,1794.4,1793.8,0.7944]
[1745670277603,5.046,1794.3,1794.1,5.57359965]
[1745670278323,5.046,1794.3,1794.0,5.57397551]
[1745670278527,1.27907789,1794.2,1793.9,5.57430471]
[1745670279125,1.27907789,1794.2,1794.0,5.57410327]
[1745670279324,0.52157789,1794.1,1794.0,5.57410327]
[1745670279499,0.52157789,1794.1,1793.9,5.57425813]
[1745670280239,0.52157789,1794.1,1793.9,11.14847569]
[1745670280426,0.52157789,1794.1,1793.9,5.57421756]
[1745670280639,0.52157789,1794.0,1793.9,5.57421756]
[1745670282224,0.52157789,1794.0,1793.9,6.68910149]
[1745670282564,0.52157789,1794.1,1794.0,5.574136]
[1745670286375,0.7575,1794.2,1794.1,5.57382531]
[1745670287453,1.27831143,1794.2,1794.1,5.57382531]
[1745670289972,1.27831143,1794.2,1794.0,5.57398237]
[1745670290192,1.27831143,1794.2,1794.0,5.57392893]
[1745670290570,1.27831143,1794.2,1794.1,5.57382531]
[1745670291380,1.27831143,1794.2,1794.0,5.57392893]
[1745670291780,0.7575,1794.2,1794.0,5.57392893]
[1745670292074,0.7575,1794.2,1793.9,5.5742701]
[1745670292852,0.52076263,1794.1,1793.9,5.5742701]
[1745670293686,0.7575,1794.2,1793.9,5.5742701]
[1745670294179,0.7575,1794.2,1794.0,5.5741252]
[1745670294384,5.046,1794.3,1794.0,5.5739148]
[1745670294595,5.046,1794.3,1794.1,5.57371452]
[1745670295093,0.52067309,1794.2,1794.1,5.57371452]
[1745670296232,5.56667309,1794.3,1794.2,5.57351465]
[1745670296922,5.56667309,1794.3,1794.1,11.14733633]
[1745670297216,5.56667309,1794.3,1794.1,5.57362181]
[1745670298734,5.046,1794.3,1794.2,5.57351465]
[1745670298915,5.046,1794.3,1794.2,6.6882283]
[1745670301836,5.56687866,1794.3,1794.2,5.57351465]
[1745670309563,6.38927866,1794.3,1793.8,0.804]
[1745670309850,0.8224,1794.0,1793.6,5.57516497]
[1745670310028,5.041,1793.9,1793.6,5.57516497]
[1745670310224,1.32522822,1793.7,1793.2,0.804]
[1745670310433,1.32522822,1793.7,1793.2,5.57657279]
[1745670310634,0.50282822,1793.5,1793.1,5.57681638]
[1745670310865,0.8224,1793.3,1793.1,5.57681638]
[1745670311084,1.32522822,1793.3,1792.8,0.804]
[1745670311384,1.13519087,1793.3,1793.0,5.57697582]
[1745670311577,0.52087866,1793.2,1793.1,5.5769338]
[1745670312662,5.041,1793.4,1793.0,5.57711008]
[1745670312857,5.041,1793.4,1793.1,5.57673605]
[1745670313074,5.041,1793.4,1793.2,5.57661397]
[1745670313668,5.041,1793.4,1793.1,5.57679631]
[1745670313868,5.54382822,1793.4,1793.0,5.57715058]
[1745670314072,3.7564,1793.3,1792.8,5.57761221]
[1745670314257,3.7564,1793.3,1792.9,5.57739311]
[1745670314470,3.7564,1793.3,1792.9,5.57729901]
[1745670314471,4.0685895,1793.3,1792.9,5.57729901]
[1745670314675,4.0685895,1793.3,1792.9,5.57729788]
[1745670315069,4.27663245,1793.3,1793.0,5.57708232]
[1745670315268,4.27663245,1793.3,1792.9,5.57737428]
[1745670316105,1.27663245,1793.3,1793.0,5.57723701]
[1745670316667,0.7564,1793.3,1793.0,5.57723701]
[1745670317284,0.7564,1793.3,1793.1,5.57692556]
[1745670317490,0.7564,1793.3,1793.0,5.57710555]
[1745670318590,0.7564,1793.3,1792.9,5.57747945]
[1745670318900,0.7564,1793.3,1792.9,5.57733542]
[1745670319203,0.7564,1793.3,1793.0,5.57710154]
[1745670320099,0.7564,1793.3,1792.6,0.819]
[1745670320306,0.7564,1793.3,1793.1,5.57674921]
[1745670321503,0.7564,1793.3,1793.0,5.57705117]
[1745670322085,0.7564,1793.3,1793.0,5.5769991]
[1745670322605,0.7564,1793.3,1793.0,11.15398913]
[1745670322977,0.7564,1793.3,1793.0,5.57699003]
[1745670324011,0.7564,1793.3,1793.1,5.57691968]
[1745670325472,0.7564,1793.3,1793.1,5.57671182]
[1745670325907,0.7064,1793.3,1793.2,5.57662279]
[1745670327715,0.7064,1793.3,1793.1,5.57688018]
[1745670327910,0.7064,1793.3,1793.0,5.57714044]
[1745670328113,0.7064,1793.3,1793.1,5.57691279]
[1745670328624,0.7064,1793.3,1793.0,5.57716068]
[1745670329117,1.32262822,1793.2,1792.5,0.7901]
[1745670329305,0.50282822,1793.0,1792.6,5.57826901]
[1745670329478,5.8568,1792.9,1792.6,11.15652601]
[1745670329682,5.8568,1792.9,1792.7,5.57808683]
[1745670329924,5.8568,1792.9,1792.8,5.57786702]
[1745670331189,5.8568,1792.9,1792.7,5.57802281]
[1745670331389,5.8568,1792.9,1792.7,5.5779538]
[1745670331603,5.8568,1792.9,1792.8,5.57786702]
[1745670332928,5.8568,1792.9,1792.7,5.5779984]
[1745670333429,5.8568,1792.9,1792.8,5.57786702]
[1745670334335,5.8568,1792.9,1792.7,5.57798461]
[1745670334900,0.50282822,1792.8,1792.3,5.57927495]
[1745670335101,0.791,1792.5,1792.2,0.7784]
[1745670335289,5.829,1792.5,1792.2,5.5794872]
[1745670335808,5.829,1792.5,1792.3,5.57941586]
[1745670336121,5.829,1792.5,1792.3,5.57922818]
[1745670336330,5.829,1792.5,1792.4,5.5791118]
[1745670336890,5.038,1792.5,1792.4,5.5791118]
[1745670338654,5.038,1792.5,1792.3,5.57924403]
[1745670339021,5.038,1792.5,1792.3,5.57917971]
[1745670339321,5.038,1792.5,1792.3,5.57918972]
[1745670339522,5.038,1792.5,1792.4,5.5791118]
[1745670340562,5.038,1792.5,1792.3,5.57923108]
[1745670342655,5.55795992,1792.5,1792.2,5.57957337]
[1745670342821,5.55795992,1792.5,1792.2,11.15909804]
[1745670343016,5.55795992,1792.5,1792.2,5.57952467]